[Event "*** SCC Grand Prix: Titled Tuesday Blitz"]
[Site "Chess.com"]
[Date "2020.06.02"]
[Round "9"]
[White "ChristopherYoo"]
[Black "olksuna"]
[Result "1-0"]
[WhiteElo "2810"]
[BlackElo "2579"]
[TimeControl "180+1"]
[EndTime "11:47:39 PDT"]
[Termination "ChristopherYoo won on time"]

1. e4 {[%clk 0:03:00.9]} 1... c6 {[%clk 0:02:58.7]} 2. d4 {[%clk 0:02:59.7]}
2... d5 {[%clk 0:02:59.2]} 3. e5 {[%clk 0:02:59.9]} 3... Bf5 {[%clk 0:02:58.5]}
4. h4 {[%clk 0:03:00.2]} 4... Qb6 {[%clk 0:02:56.6]} 5. Ne2 {[%clk 0:02:57.2]}
5... e6 {[%clk 0:02:52.1]} 6. Ng3 {[%clk 0:02:51.2]} 6... Ne7 {[%clk 0:02:51.4]}
7. a4 {[%clk 0:02:32.1]} 7... h6 {[%clk 0:02:46.8]} 8. a5 {[%clk 0:02:30.5]}
8... Qc7 {[%clk 0:02:46.5]} 9. b4 {[%clk 0:01:53.7]} 9... Nd7 {[%clk 0:02:35]}
10. h5 {[%clk 0:01:48.8]} 10... f6 {[%clk 0:02:29.1]} 11. exf6 {[%clk
0:01:47.5]} 11... Nxf6 {[%clk 0:02:30]} 12. Nc3 {[%clk 0:01:20.6]} 12... e5
{[%clk 0:02:20.6]} 13. Be3 {[%clk 0:01:16.7]} 13... Bh7 {[%clk 0:02:08.4]} 14.
Be2 {[%clk 0:01:10.4]} 14... Nf5 {[%clk 0:02:04.3]} 15. Nxf5 {[%clk 0:01:10]}
15... Bxf5 {[%clk 0:02:05.2]} 16. Rb1 {[%clk 0:01:08.6]} 16... Bd6 {[%clk
0:02:00]} 17. Qd2 {[%clk 0:00:44.5]} 17... e4 {[%clk 0:01:52]} 18. Na4 {[%clk
0:00:42.4]} 18... O-O {[%clk 0:01:50.8]} 19. c4 {[%clk 0:00:39]} 19... Ng4
{[%clk 0:01:46]} 20. c5 {[%clk 0:00:36.6]} 20... Be7 {[%clk 0:01:26.3]} 21. Bf4
{[%clk 0:00:35.5]} 21... Qd7 {[%clk 0:01:21.4]} 22. Nb2 {[%clk 0:00:35.4]} 22...
Be6 {[%clk 0:01:13.9]} 23. Nd1 {[%clk 0:00:33.2]} 23... Rf7 {[%clk 0:01:08.5]}
24. g3 {[%clk 0:00:29]} 24... a6 {[%clk 0:01:06.9]} 25. Ne3 {[%clk 0:00:29]}
25... Raf8 {[%clk 0:01:04]} 26. Rb3 {[%clk 0:00:20.8]} 26... Kh7 {[%clk
0:00:56.2]} 27. Ng2 {[%clk 0:00:19]} 27... Bd8 {[%clk 0:00:41.8]} 28. Nh4 {[%clk
0:00:16.6]} 28... Bxh4 {[%clk 0:00:28]} 29. Rxh4 {[%clk 0:00:17.5]} 29... e3
{[%clk 0:00:21.6]} 30. fxe3 {[%clk 0:00:15.7]} 30... Nf6 {[%clk 0:00:21.7]} 31.
Bd3+ {[%clk 0:00:13.1]} 31... Bf5 {[%clk 0:00:21.8]} 32. Kd1 {[%clk 0:00:09]}
32... Bxd3 {[%clk 0:00:20.8]} 33. Qxd3+ {[%clk 0:00:09.3]} 33... Ne4 {[%clk
0:00:21.7]} 34. Kc2 {[%clk 0:00:09.5]} 34... Kh8 {[%clk 0:00:20.4]} 35. Rb1
{[%clk 0:00:09.1]} 35... Nf2 {[%clk 0:00:13.5]} 36. Qe2 {[%clk 0:00:06.3]} 36...
Ne4 {[%clk 0:00:10.2]} 37. g4 {[%clk 0:00:05.5]} 37... Re8 {[%clk 0:00:09.2]}
38. Rg1 {[%clk 0:00:05.1]} 38... Qe7 {[%clk 0:00:05]} 39. Rh2 {[%clk 0:00:05]}
39... Ng5 {[%clk 0:00:04.9]} 40. Rhg2 {[%clk 0:00:03.7]} 40... Rxf4 {[%clk
0:00:04.9]} 41. exf4 {[%clk 0:00:03]} 41... Qxe2+ {[%clk 0:00:04.7]} 42. Rxe2
{[%clk 0:00:03.9]} 42... Rxe2+ {[%clk 0:00:04.8]} 43. Kd3 {[%clk 0:00:04.5]}
43... Nf3 {[%clk 0:00:02.6]} 44. Rg3 {[%clk 0:00:04.4]} 44... Rf2 {[%clk
0:00:02.2]} 45. Ke3 {[%clk 0:00:04.6]} 1-0

[Event "*** SCC Grand Prix: Titled Tuesday Blitz"]
[Site "Chess.com"]
[Date "2020.06.02"]
[Round "9"]
[White "JulAnt"]
[Black "Kavyev_Ruslan"]
[Result "0-1"]
[WhiteElo "2411"]
[BlackElo "2535"]
[TimeControl "180+1"]
[EndTime "11:47:39 PDT"]
[Termination "Kavyev_Ruslan won by resignation"]

1. e4 {[%clk 0:03:00.9]} 1... c5 {[%clk 0:02:57.5]} 2. Nf3 {[%clk 0:03:00.9]}
2... d6 {[%clk 0:02:57.1]} 3. d4 {[%clk 0:03:01.2]} 3... cxd4 {[%clk 0:02:58]}
4. Nxd4 {[%clk 0:03:01.8]} 4... Nf6 {[%clk 0:02:58.7]} 5. Nc3 {[%clk 0:03:02.2]}
5... a6 {[%clk 0:02:59.3]} 6. Bg5 {[%clk 0:03:02.4]} 6... Nbd7 {[%clk
0:02:59.3]} 7. Bc4 {[%clk 0:03:00.9]} 7... Qb6 {[%clk 0:02:58.9]} 8. Bb3 {[%clk
0:02:59.9]} 8... e6 {[%clk 0:02:59]} 9. Qd2 {[%clk 0:03:00.1]} 9... Be7 {[%clk
0:02:59.6]} 10. O-O-O {[%clk 0:03:00.3]} 10... Nc5 {[%clk 0:03:00.3]} 11. Rhe1
{[%clk 0:02:57.3]} 11... Bd7 {[%clk 0:03:00.7]} 12. Kb1 {[%clk 0:02:53.9]} 12...
O-O-O {[%clk 0:03:00.7]} 13. f3 {[%clk 0:02:50.9]} 13... Kb8 {[%clk 0:03:00]}
14. Be3 {[%clk 0:02:46.6]} 14... Qc7 {[%clk 0:02:56.8]} 15. g4 {[%clk
0:02:45.4]} 15... Nxb3 {[%clk 0:02:52.5]} 16. Nxb3 {[%clk 0:02:43.4]} 16... h6
{[%clk 0:02:48.6]} 17. Qf2 {[%clk 0:02:43.3]} 17... Rde8 {[%clk 0:02:28.9]} 18.
Bb6 {[%clk 0:02:25.1]} 18... Qc8 {[%clk 0:02:27.6]} 19. Rd2 {[%clk 0:02:17.7]}
19... Bc6 {[%clk 0:02:24.6]} 20. Red1 {[%clk 0:02:14.4]} 20... Nd7 {[%clk
0:02:23.4]} 21. Be3 {[%clk 0:02:14.6]} 21... Ne5 {[%clk 0:02:23.1]} 22. Bf4
{[%clk 0:01:40.2]} 22... Rd8 {[%clk 0:02:16.7]} 23. h3 {[%clk 0:01:31.1]} 23...
Ka8 {[%clk 0:02:08.2]} 24. Qg3 {[%clk 0:01:21.6]} 24... Qc7 {[%clk 0:01:50.2]}
25. Bxe5 {[%clk 0:01:02.2]} 25... dxe5 {[%clk 0:01:48.5]} 26. Rxd8+ {[%clk
0:01:02.8]} 26... Rxd8 {[%clk 0:01:48.2]} 27. Rxd8+ {[%clk 0:01:02.7]} 27...
Bxd8 {[%clk 0:01:44.8]} 28. Qe1 {[%clk 0:01:00]} 28... Be7 {[%clk 0:01:42.4]}
29. Qd1 {[%clk 0:00:57.4]} 29... Qd7 {[%clk 0:01:42.2]} 30. Qxd7 {[%clk
0:00:55.2]} 30... Bxd7 {[%clk 0:01:43.1]} 31. Kc1 {[%clk 0:00:55.6]} 31... b6
{[%clk 0:01:42]} 32. Kd2 {[%clk 0:00:55.8]} 32... Kb7 {[%clk 0:01:42.6]} 33. Ke3
{[%clk 0:00:56.2]} 33... Bg5+ {[%clk 0:01:42.4]} 34. Kd3 {[%clk 0:00:56]} 34...
Bc6 {[%clk 0:01:32.5]} 35. Ne2 {[%clk 0:00:55.5]} 35... Bb5+ {[%clk 0:01:32]}
36. c4 {[%clk 0:00:55.4]} 36... Bc6 {[%clk 0:01:32.4]} 37. Nd2 {[%clk
0:00:53.8]} 37... f5 {[%clk 0:01:31.1]} 38. Nf1 {[%clk 0:00:48.7]} 38... g6
{[%clk 0:01:25.2]} 39. Nc3 {[%clk 0:00:39.1]} 39... Kc7 {[%clk 0:01:19.7]} 40.
Ne3 {[%clk 0:00:34.6]} 40... Kd6 {[%clk 0:01:18.8]} 41. gxf5 {[%clk 0:00:31.5]}
41... exf5 {[%clk 0:01:18.6]} 42. exf5 {[%clk 0:00:31.7]} 42... Bxe3 {[%clk
0:01:18.9]} 43. Kxe3 {[%clk 0:00:30.8]} 43... gxf5 {[%clk 0:01:18.9]} 44. b4
{[%clk 0:00:23.1]} 44... a5 {[%clk 0:01:16.8]} 45. a3 {[%clk 0:00:22.9]} 45...
f4+ {[%clk 0:01:13.8]} 46. Ke2 {[%clk 0:00:20.2]} 46... Bd7 {[%clk 0:01:13.6]}
47. h4 {[%clk 0:00:19]} 47... Be6 {[%clk 0:01:12.8]} 48. Kd3 {[%clk 0:00:19.4]}
48... Bf5+ {[%clk 0:01:13]} 49. Ne4+ {[%clk 0:00:18.3]} 49... Kc6 {[%clk
0:01:11.9]} 50. c5 {[%clk 0:00:10.5]} 50... axb4 {[%clk 0:00:57.1]} 51. axb4
{[%clk 0:00:10.3]} 51... bxc5 {[%clk 0:00:56.6]} 52. bxc5 {[%clk 0:00:11.2]}
52... h5 {[%clk 0:00:56.5]} 53. Kc4 {[%clk 0:00:06.4]} 53... Bxe4 {[%clk
0:00:56.7]} 54. fxe4 {[%clk 0:00:07.3]} 54... f3 {[%clk 0:00:54.8]} 55. Kd3
{[%clk 0:00:07.3]} 55... Kxc5 {[%clk 0:00:55.4]} 56. Ke3 {[%clk 0:00:07.8]}
56... f2 {[%clk 0:00:55.3]} 57. Kxf2 {[%clk 0:00:07.8]} 57... Kd4 {[%clk
0:00:56.1]} 58. Kf3 {[%clk 0:00:08]} 58... Kd3 {[%clk 0:00:56.7]} 59. Kf2 {[%clk
0:00:07.9]} 59... Kxe4 {[%clk 0:00:57.3]} 60. Ke2 {[%clk 0:00:08.8]} 60... Kf4
{[%clk 0:00:55.4]} 61. Kf2 {[%clk 0:00:09.7]} 61... Kg4 {[%clk 0:00:55.2]} 0-1

[Event "*** SCC Grand Prix: Titled Tuesday Blitz"]
[Site "Chess.com"]
[Date "2020.06.02"]
[Round "9"]
[White "goldenpuppy"]
[Black "OnatB"]
[Result "0-1"]
[WhiteElo "2180"]
[BlackElo "2331"]
[TimeControl "180+1"]
[EndTime "11:47:39 PDT"]
[Termination "OnatB won by resignation"]

1. e4 {[%clk 0:03:00.9]} 1... c5 {[%clk 0:03:00.9]} 2. Nf3 {[%clk 0:03:00.6]}
2... g6 {[%clk 0:03:00.4]} 3. c3 {[%clk 0:03:00.2]} 3... d5 {[%clk 0:02:59.6]}
4. exd5 {[%clk 0:02:58.9]} 4... Qxd5 {[%clk 0:02:59.5]} 5. d4 {[%clk 0:02:59.8]}
5... Bg7 {[%clk 0:02:57.2]} 6. Be3 {[%clk 0:02:59.9]} 6... cxd4 {[%clk
0:02:54.2]} 7. cxd4 {[%clk 0:03:00.3]} 7... Nh6 {[%clk 0:02:53.2]} 8. Nc3 {[%clk
0:03:00.4]} 8... Qd8 {[%clk 0:02:49.3]} 9. h3 {[%clk 0:03:00.3]} 9... Nf5 {[%clk
0:02:48.2]} 10. Bb5+ {[%clk 0:03:00.1]} 10... Nd7 {[%clk 0:02:43.3]} 11. Qd3
{[%clk 0:02:47.8]} 11... O-O {[%clk 0:02:41.7]} 12. O-O {[%clk 0:02:46.5]} 12...
Nb6 {[%clk 0:02:39.4]} 13. Rad1 {[%clk 0:02:39]} 13... a6 {[%clk 0:02:27.6]} 14.
Ba4 {[%clk 0:02:35.8]} 14... Nxa4 {[%clk 0:02:21]} 15. Nxa4 {[%clk 0:02:36.7]}
15... Bd7 {[%clk 0:02:20.1]} 16. Nc5 {[%clk 0:02:34.6]} 16... Bb5 {[%clk
0:02:19.2]} 17. Qe4 {[%clk 0:02:30.1]} 17... Nd6 {[%clk 0:02:10.5]} 18. Qh4
{[%clk 0:02:28]} 18... Bxf1 {[%clk 0:02:07.2]} 19. Rxf1 {[%clk 0:02:28.9]} 19...
b6 {[%clk 0:02:01]} 20. Nb3 {[%clk 0:02:16.8]} 20... Rc8 {[%clk 0:01:42.7]} 21.
g4 {[%clk 0:02:06.4]} 21... e6 {[%clk 0:01:21.9]} 22. Bg5 {[%clk 0:01:56.2]}
22... f6 {[%clk 0:01:21.5]} 23. Be3 {[%clk 0:01:55.1]} 23... g5 {[%clk
0:01:17.5]} 24. Qg3 {[%clk 0:01:51.3]} 24... Ne4 {[%clk 0:01:15.1]} 25. Qh2
{[%clk 0:01:51]} 25... f5 {[%clk 0:01:11.5]} 26. h4 {[%clk 0:01:39.3]} 26... f4
{[%clk 0:01:08.1]} 27. Bc1 {[%clk 0:01:36.8]} 27... h6 {[%clk 0:01:00.1]} 28.
Re1 {[%clk 0:01:35.8]} 28... Qd5 {[%clk 0:00:58.1]} 29. Kg2 {[%clk 0:01:31.6]}
29... Rc2 {[%clk 0:00:53.3]} 30. Rxe4 {[%clk 0:01:01.3]} 30... Qxe4 {[%clk
0:00:49.7]} 31. hxg5 {[%clk 0:01:01.7]} 31... hxg5 {[%clk 0:00:43.6]} 32. Qh5
{[%clk 0:00:58.5]} 32... Bf6 {[%clk 0:00:33.2]} 33. Qh1 {[%clk 0:00:46.1]} 33...
Kg7 {[%clk 0:00:25.5]} 34. Nd2 {[%clk 0:00:24.5]} 34... Qd5 {[%clk 0:00:20.4]}
35. Qd1 {[%clk 0:00:22.7]} 35... Rfc8 {[%clk 0:00:20]} 36. Nb3 {[%clk 0:00:22]}
36... Qe4 {[%clk 0:00:18.8]} 37. Qf1 {[%clk 0:00:16]} 37... Re2 {[%clk
0:00:17.8]} 38. Nd2 {[%clk 0:00:14.3]} 38... Qd3 {[%clk 0:00:17.9]} 39. b3
{[%clk 0:00:13.2]} 39... Rc2 {[%clk 0:00:17.7]} 40. Nb1 {[%clk 0:00:10.8]} 40...
Qe4 {[%clk 0:00:17.2]} 41. Nd2 {[%clk 0:00:09.4]} 41... Qd3 {[%clk 0:00:16.6]}
42. Nb1 {[%clk 0:00:09.4]} 42... b5 {[%clk 0:00:16.4]} 43. a4 {[%clk 0:00:08.9]}
43... b4 {[%clk 0:00:16]} 44. Ne1 {[%clk 0:00:08.2]} 44... Qg3+ {[%clk 0:00:14]}
45. Kh1 {[%clk 0:00:07.1]} 45... Rxf2 {[%clk 0:00:13.5]} 46. Qg1 {[%clk
0:00:05.2]} 46... Qh3+ {[%clk 0:00:12.8]} 0-1

[Event "*** SCC Grand Prix: Titled Tuesday Blitz"]
[Site "Chess.com"]
[Date "2020.06.02"]
[Round "9"]
[White "vlad_Sid"]
[Black "Jumbo"]
[Result "0-1"]
[WhiteElo "2652"]
[BlackElo "2840"]
[TimeControl "180+1"]
[EndTime "11:47:40 PDT"]
[Termination "Jumbo won on time"]

1. c4 {[%clk 0:03:00.9]} 1... e5 {[%clk 0:02:59.2]} 2. g3 {[%clk 0:03:01.2]}
2... d6 {[%clk 0:02:59.4]} 3. Bg2 {[%clk 0:03:01.5]} 3... g6 {[%clk 0:02:59.9]}
4. Nc3 {[%clk 0:03:01.7]} 4... Bg7 {[%clk 0:03:00.3]} 5. Nf3 {[%clk 0:03:01.7]}
5... f5 {[%clk 0:02:59.9]} 6. O-O {[%clk 0:03:02]} 6... Nf6 {[%clk 0:03:00.2]}
7. Rb1 {[%clk 0:03:00.4]} 7... O-O {[%clk 0:02:58.4]} 8. b4 {[%clk 0:03:00.6]}
8... Nbd7 {[%clk 0:02:29.3]} 9. Qc2 {[%clk 0:02:58]} 9... Re8 {[%clk 0:02:20.3]}
10. d3 {[%clk 0:02:56.8]} 10... Nf8 {[%clk 0:02:15.2]} 11. Nd5 {[%clk
0:02:55.1]} 11... Ne6 {[%clk 0:02:07.6]} 12. Bb2 {[%clk 0:02:43.7]} 12... Qd7
{[%clk 0:01:54.2]} 13. b5 {[%clk 0:02:30.8]} 13... Nxd5 {[%clk 0:01:40.7]} 14.
cxd5 {[%clk 0:02:31.7]} 14... Nc5 {[%clk 0:01:40.8]} 15. Bxe5 {[%clk 0:02:02.2]}
15... Bxe5 {[%clk 0:01:14.8]} 16. d4 {[%clk 0:02:00.7]} 16... Bxd4 {[%clk
0:01:10.6]} 17. Nxd4 {[%clk 0:02:00.8]} 17... Qf7 {[%clk 0:01:04.6]} 18. e3
{[%clk 0:01:55.3]} 18... b6 {[%clk 0:01:02.5]} 19. Ne6 {[%clk 0:01:30.4]} 19...
Bb7 {[%clk 0:01:00.4]} 20. h4 {[%clk 0:01:14.9]} 20... a6 {[%clk 0:00:58.1]} 21.
a4 {[%clk 0:01:08.2]} 21... axb5 {[%clk 0:00:56.2]} 22. axb5 {[%clk 0:01:09.1]}
22... Ra7 {[%clk 0:00:50.3]} 23. Ra1 {[%clk 0:01:07.1]} 23... Rea8 {[%clk
0:00:47]} 24. Qc3 {[%clk 0:00:53]} 24... Qe7 {[%clk 0:00:29.1]} 25. Rxa7 {[%clk
0:00:51]} 25... Rxa7 {[%clk 0:00:28.5]} 26. Nf4 {[%clk 0:00:30.7]} 26... Qe5
{[%clk 0:00:24.3]} 27. Qc4 {[%clk 0:00:21.5]} 27... Ra4 {[%clk 0:00:22.1]} 28.
Qc2 {[%clk 0:00:21.2]} 28... Rb4 {[%clk 0:00:20.2]} 29. Nd3 {[%clk 0:00:20.5]}
29... Nxd3 {[%clk 0:00:19.8]} 30. Qxd3 {[%clk 0:00:21.4]} 30... Qb2 {[%clk
0:00:19.1]} 31. Rd1 {[%clk 0:00:18.1]} 31... Rxb5 {[%clk 0:00:15.4]} 32. Kh2
{[%clk 0:00:16.5]} 32... Rc5 {[%clk 0:00:15.2]} 33. Rd2 {[%clk 0:00:15.3]} 33...
Qe5 {[%clk 0:00:15.5]} 34. Ra2 {[%clk 0:00:14.3]} 34... Bxd5 {[%clk 0:00:14.6]}
35. Bxd5+ {[%clk 0:00:11.1]} 35... Qxd5 {[%clk 0:00:15.5]} 36. Qe2 {[%clk
0:00:07.8]} 36... Rc1 {[%clk 0:00:13.3]} 37. f3 {[%clk 0:00:05.7]} 37... Re1
{[%clk 0:00:09.6]} 38. Qf2 {[%clk 0:00:02.3]} 38... Rf1 {[%clk 0:00:09.2]} 39.
Qe2 {[%clk 0:00:01.7]} 39... Rxf3 {[%clk 0:00:07.2]} 40. Rd2 {[%clk 0:00:01.5]}
40... Qe4 {[%clk 0:00:07.6]} 0-1

[Event "*** SCC Grand Prix: Titled Tuesday Blitz"]
[Site "Chess.com"]
[Date "2020.06.02"]
[Round "9"]
[White "sergeikim"]
[Black "Ba_clbaf_osed_ingo_3v21"]
[Result "0-1"]
[WhiteElo "2466"]
[BlackElo "2639"]
[TimeControl "180+1"]
[EndTime "11:47:44 PDT"]
[Termination "Ba_clbaf_osed_ingo_3v21 won on time"]

1. d4 {[%clk 0:03:00.9]} 1... Nf6 {[%clk 0:02:59.4]} 2. c4 {[%clk 0:03:00.5]}
2... g6 {[%clk 0:02:58.9]} 3. Nc3 {[%clk 0:03:00.5]} 3... d5 {[%clk 0:02:58.5]}
4. cxd5 {[%clk 0:03:00.2]} 4... Nxd5 {[%clk 0:02:59.4]} 5. e4 {[%clk 0:02:59.8]}
5... Nxc3 {[%clk 0:02:59.2]} 6. bxc3 {[%clk 0:03:00.7]} 6... Bg7 {[%clk
0:02:59.9]} 7. Bc4 {[%clk 0:03:00.4]} 7... c5 {[%clk 0:02:58.4]} 8. Ne2 {[%clk
0:03:00]} 8... Nc6 {[%clk 0:02:57]} 9. Be3 {[%clk 0:02:59]} 9... O-O {[%clk
0:02:56.2]} 10. O-O {[%clk 0:02:57.8]} 10... b6 {[%clk 0:02:54.7]} 11. Qd2
{[%clk 0:02:55.3]} 11... Bb7 {[%clk 0:02:53]} 12. Rfd1 {[%clk 0:02:51.2]} 12...
cxd4 {[%clk 0:02:51.9]} 13. cxd4 {[%clk 0:02:50.2]} 13... e6 {[%clk 0:02:52]}
14. Bh6 {[%clk 0:02:46.8]} 14... Rc8 {[%clk 0:02:48.7]} 15. Bxg7 {[%clk
0:02:44.7]} 15... Kxg7 {[%clk 0:02:49]} 16. Rac1 {[%clk 0:02:18]} 16... Na5
{[%clk 0:02:44.3]} 17. Bd3 {[%clk 0:02:16.3]} 17... Qd7 {[%clk 0:02:44.1]} 18.
Qg5 {[%clk 0:02:11.3]} 18... Rxc1 {[%clk 0:02:40.2]} 19. Rxc1 {[%clk 0:02:10]}
19... Rc8 {[%clk 0:02:40.7]} 20. Rd1 {[%clk 0:02:06.2]} 20... Qa4 {[%clk
0:02:33.7]} 21. Rf1 {[%clk 0:01:53.7]} 21... Qxa2 {[%clk 0:02:22.2]} 22. Nf4
{[%clk 0:01:50.1]} 22... Qa3 {[%clk 0:02:13]} 23. Nh5+ {[%clk 0:01:33.6]} 23...
Kf8 {[%clk 0:02:06.6]} 24. Qh6+ {[%clk 0:01:28.5]} 24... Ke8 {[%clk 0:02:06.2]}
25. Bb5+ {[%clk 0:01:13.7]} 25... Bc6 {[%clk 0:02:00.9]} 26. Bxc6+ {[%clk
0:01:07.3]} 26... Nxc6 {[%clk 0:01:58.5]} 27. Nf6+ {[%clk 0:01:03]} 27... Ke7
{[%clk 0:01:56]} 28. Qh4 {[%clk 0:01:01.2]} 28... Nxd4 {[%clk 0:01:37.5]} 29.
Nxh7+ {[%clk 0:00:57.9]} 29... Ke8 {[%clk 0:01:26.9]} 30. Nf6+ {[%clk
0:00:55.9]} 30... Ke7 {[%clk 0:01:27]} 31. Nh7+ {[%clk 0:00:43]} 31... Ke8
{[%clk 0:01:25.3]} 32. Nf6+ {[%clk 0:00:42.4]} 32... Kd8 {[%clk 0:01:21.3]} 33.
e5 {[%clk 0:00:24.7]} 33... Ne2+ {[%clk 0:01:03]} 34. Kh1 {[%clk 0:00:23.6]}
34... Rc1 {[%clk 0:01:03.6]} 35. Qh8+ {[%clk 0:00:17.2]} 35... Kc7 {[%clk
0:00:46.4]} 36. Ne8+ {[%clk 0:00:12.6]} 36... Kc6 {[%clk 0:00:40.3]} 37. g3
{[%clk 0:00:11.1]} 37... Rxf1+ {[%clk 0:00:39.6]} 38. Kg2 {[%clk 0:00:12]} 38...
Rg1+ {[%clk 0:00:33.6]} 39. Kh3 {[%clk 0:00:12]} 39... Qd3 {[%clk 0:00:29.5]}
40. Nd6 {[%clk 0:00:10]} 40... Kd5 {[%clk 0:00:17.4]} 41. Qa8+ {[%clk
0:00:05.7]} 41... Kd4 {[%clk 0:00:15.9]} 42. Qxa7 {[%clk 0:00:02.3]} 42... Kxe5
{[%clk 0:00:12.6]} 43. Nxf7+ {[%clk 0:00:01.5]} 43... Kf6 {[%clk 0:00:12.5]} 44.
Nh8 {[%clk 0:00:01.2]} 44... Qf5+ {[%clk 0:00:12.3]} 0-1

[Event "*** SCC Grand Prix: Titled Tuesday Blitz"]
[Site "Chess.com"]
[Date "2020.06.02"]
[Round "9"]
[White "Pavel_Mir"]
[Black "woodhy"]
[Result "1-0"]
[WhiteElo "2306"]
[BlackElo "2448"]
[TimeControl "180+1"]
[EndTime "11:47:45 PDT"]
[Termination "Pavel_Mir won by checkmate"]

1. e4 {[%clk 0:03:00.9]} 1... e6 {[%clk 0:02:59.1]} 2. d4 {[%clk 0:03:00.4]}
2... d5 {[%clk 0:02:59.2]} 3. Nd2 {[%clk 0:03:00.7]} 3... c5 {[%clk 0:02:58.5]}
4. exd5 {[%clk 0:03:00.8]} 4... exd5 {[%clk 0:02:59.4]} 5. Ngf3 {[%clk
0:03:00.5]} 5... Nc6 {[%clk 0:02:59.2]} 6. Bb5 {[%clk 0:02:59.2]} 6... Bd6
{[%clk 0:02:44]} 7. dxc5 {[%clk 0:02:58.7]} 7... Bxc5 {[%clk 0:02:44.9]} 8. O-O
{[%clk 0:02:58.8]} 8... Ne7 {[%clk 0:02:44.6]} 9. Nb3 {[%clk 0:02:59.4]} 9...
Bd6 {[%clk 0:02:44.7]} 10. Bg5 {[%clk 0:02:56.8]} 10... O-O {[%clk 0:02:41.6]}
11. c3 {[%clk 0:02:52.4]} 11... h6 {[%clk 0:02:40.3]} 12. Bh4 {[%clk 0:02:50.2]}
12... Bg4 {[%clk 0:02:40.4]} 13. Bg3 {[%clk 0:02:47.5]} 13... Bxg3 {[%clk
0:02:39.4]} 14. hxg3 {[%clk 0:02:46.5]} 14... Qb6 {[%clk 0:02:39.9]} 15. Be2
{[%clk 0:02:40.3]} 15... Nf5 {[%clk 0:02:28.3]} 16. Qxd5 {[%clk 0:02:08.9]}
16... Nxg3 {[%clk 0:02:23.8]} 17. Rfe1 {[%clk 0:01:53.9]} 17... Rad8 {[%clk
0:02:03.1]} 18. Qc5 {[%clk 0:01:53.2]} 18... Nxe2+ {[%clk 0:02:00]} 19. Rxe2
{[%clk 0:01:52.1]} 19... Qxc5 {[%clk 0:01:58.1]} 20. Nxc5 {[%clk 0:01:51.9]}
20... Bxf3 {[%clk 0:01:59]} 21. gxf3 {[%clk 0:01:52.3]} 21... b6 {[%clk
0:01:59.3]} 22. Nb3 {[%clk 0:01:41.9]} 22... Rfe8 {[%clk 0:01:58.2]} 23. Rxe8+
{[%clk 0:01:34.2]} 23... Rxe8 {[%clk 0:01:57.7]} 24. Kf1 {[%clk 0:01:34.9]}
24... h5 {[%clk 0:01:56.3]} 25. a4 {[%clk 0:01:34.8]} 25... Re5 {[%clk
0:01:51.5]} 26. Rd1 {[%clk 0:01:32.8]} 26... Rf5 {[%clk 0:01:38.2]} 27. Rd6
{[%clk 0:01:25.6]} 27... Ne5 {[%clk 0:01:13.3]} 28. Nd4 {[%clk 0:01:25.1]} 28...
Rf4 {[%clk 0:01:13.5]} 29. Rd8+ {[%clk 0:01:18.5]} 29... Kh7 {[%clk 0:01:12.7]}
30. Rd5 {[%clk 0:01:12.2]} 30... f6 {[%clk 0:01:09.9]} 31. a5 {[%clk 0:01:12.5]}
31... h4 {[%clk 0:00:58.9]} 32. a6 {[%clk 0:01:10.3]} 32... h3 {[%clk 0:00:58]}
33. Rd7 {[%clk 0:01:02.8]} 33... Nxf3 {[%clk 0:00:41]} 34. Nxf3 {[%clk
0:00:57.3]} 34... Rxf3 {[%clk 0:00:41.9]} 35. Rxa7 {[%clk 0:00:56.8]} 35... h2
{[%clk 0:00:42.1]} 36. Kg2 {[%clk 0:00:54.8]} 36... Rxf2+ {[%clk 0:00:42.4]} 37.
Kh1 {[%clk 0:00:54.2]} 37... Rxb2 {[%clk 0:00:43.3]} 38. Rb7 {[%clk 0:00:50.5]}
38... b5 {[%clk 0:00:41.3]} 39. c4 {[%clk 0:00:47.1]} 39... Ra2 {[%clk
0:00:39.5]} 40. cxb5 {[%clk 0:00:46.5]} 40... Kg6 {[%clk 0:00:37.5]} 41. a7
{[%clk 0:00:46.8]} 41... f5 {[%clk 0:00:17.4]} 42. b6 {[%clk 0:00:46.8]} 42...
f4 {[%clk 0:00:17.4]} 43. Rb8 {[%clk 0:00:47.1]} 43... f3 {[%clk 0:00:17.2]} 44.
a8=Q {[%clk 0:00:44.6]} 44... f2 {[%clk 0:00:15.1]} 45. Qg2+ {[%clk 0:00:40]}
45... Kf7 {[%clk 0:00:13.8]} 46. Rb7+ {[%clk 0:00:39.6]} 46... Ke6 {[%clk
0:00:14]} 47. Qg6+ {[%clk 0:00:31.1]} 47... Ke5 {[%clk 0:00:12.5]} 48. Qxg7+
{[%clk 0:00:30.8]} 48... Kf4 {[%clk 0:00:12.2]} 49. Rf7+ {[%clk 0:00:30.2]}
49... Ke3 {[%clk 0:00:12.5]} 50. Qe5+ {[%clk 0:00:30]} 50... Kd3 {[%clk
0:00:11.1]} 51. Rf3+ {[%clk 0:00:29.4]} 51... Kc4 {[%clk 0:00:06.4]} 52. Rf4+
{[%clk 0:00:27.9]} 52... Kd3 {[%clk 0:00:06]} 53. Qe4+ {[%clk 0:00:27.9]} 53...
Kc3 {[%clk 0:00:05.2]} 54. Qe3+ {[%clk 0:00:28]} 54... Kb2 {[%clk 0:00:04.5]}
55. Rxf2+ {[%clk 0:00:28.1]} 55... Kb1 {[%clk 0:00:05]} 56. Qe1# {[%clk
0:00:28.2]} 1-0